bitfinex/quotes_ETHUSD_20240612
["timestamp","ask_amount","ask_price","bid_price","bid_amount"]
[1718218552184,2.80961,3559.3,3558.1,5.16623]
[1718218552364,0.280961,3559.2,3558.2,1.43344514]
[1718218552567,2.80853,3560.6,3558.7,1.43344514]
[1718218552874,0.05623587,3560.5,3558.7,1.43344514]
[1718218553383,2.80907,3559.9,3558.7,4.24345514]
[1718218553555,2.80907,3559.9,3558.9,1.43344514]
[1718218553877,2.80891,3560.1,3558.9,1.43344514]
[1718218555202,2.80752,3561.9,3559.8,2.80906]
[1718218555477,2.80842,3560.8,3559.9,1.45148117]
[1718218555661,2.80842,3560.8,3560.0,0.04676405]
[1718218555662,3.089262,3560.8,3560.0,0.04676405]
[1718218555864,2.80842,3560.8,3560.1,1.43344514]
[1718218556042,2.80749,3561.9,3560.1,1.43344514]
[1718218556244,2.86372587,3561.9,3560.1,1.43344514]
[1718218556439,2.86372587,3561.9,3560.1,3.77104514]
[1718218556640,2.80812,3561.2,3560.2,4.24225514]
[1718218556855,2.80812,3561.2,3560.3,0.04693812]
[1718218557057,2.80812,3561.2,3560.2,4.24225514]
[1718218557058,2.80812,3561.2,3560.4,1.43344514]
[1718218557751,0.05623587,3561.1,3559.5,2.74]
[1718218557955,2.80859,3560.5,3559.6,1.43344514]
[1718218558344,3.089449,3560.5,3559.6,1.43344514]
[1718218558541,2.80895,3560.1,3559.6,1.43344514]
[1718218559074,0.280859,3560.5,3559.6,1.43344514]
[1718218559075,2.80868,3560.4,3559.6,1.43344514]
[1718218559846,2.80842,3560.8,3559.6,1.43344514]
[1718218560058,0.280842,3560.7,3559.7,0.05617423]
[1718218560260,2.80874,3560.4,3559.8,1.43344514]
[1718218560654,2.80838,3560.8,3559.8,1.43344514]
[1718218560845,2.80838,3560.8,3559.9,0.05278561]
[1718218561040,2.80838,3560.8,3560.0,1.43344514]
[1718218561259,0.05623587,3560.7,3560.0,1.43344514]
[1718218561467,0.05623587,3561.3,3560.0,1.43344514]
[1718218561656,2.80921,3559.8,3559.4,2.4013]
[1718218561861,0.28641659,3561.2,3559.5,1.4896272]
[1718218562086,0.05623587,3561.1,3559.5,1.43344514]
[1718218562383,0.05623587,3561.1,3558.3,9.7389505]
[1718218562384,2.80934,3559.6,3558.8,2.3764]
[1718218562601,2.80956,3559.3,3558.9,1.43344514]
[1718218563002,2.80915,3559.8,3558.2,2.4695]
[1718218563147,2.80915,3559.8,3558.3,1.43344514]
[1718218563148,2.80987,3558.9,3558.3,1.43344514]
[1718218563347,2.80885,3560.2,3558.3,1.43344514]
[1718218563575,0.33712087,3560.1,3558.4,4.24367514]
[1718218563986,2.80946,3559.4,3558.4,4.24367514]
[1718218564343,2.80921,3559.8,3558.4,4.24367514]
[1718218564549,0.05623587,3559.7,3558.4,1.43344514]
[1718218564744,2.80971,3559.1,3558.4,1.43344514]
[1718218565059,2.80971,3559.1,3558.4,1.86276911]
[1718218565460,0.280885,3560.1,3558.4,1.43344514]
[1718218565461,2.80994,3558.8,3558.4,1.43344514]
[1718218565671,2.80994,3558.8,3557.6,2.2708]
[1718218565994,2.80962,3559.2,3557.7,4.24422514]
[1718218566281,0.05623587,3559.1,3558.1,2.81043]
[1718218566488,2.86535587,3559.9,3558.2,1.71448814]
[1718218566705,2.86535587,3559.9,3558.4,2.4149]
[1718218566706,2.80912,3559.9,3558.4,2.4149]
[1718218566853,2.80876,3560.3,3558.9,2.8098]
[1718218567057,3.14247525,3561.0,3559.0,1.48962586]
[1718218567058,2.80849,3560.7,3559.0,1.48962586]
[1718218567356,2.80753,3561.9,3559.6,2.80925]
[1718218567357,2.80817,3561.1,3559.6,2.80925]
[1718218567548,2.80817,3561.1,3559.8,4.24257514]
[1718218567747,2.2675,3562.0,3560.0,4.24241514]
[1718218568114,2.80753,3561.9,3560.6,2.80848]
[1718218568247,2.80753,3561.9,3560.7,0.0561527]
[1718218568452,2.80753,3561.9,3560.6,2.80848]
[1718218568653,2.80753,3561.9,3560.7,1.43344514]
[1718218568969,2.80716,3562.4,3560.8,4.24179514]
[1718218569285,0.05623587,3562.3,3561.0,2.80819]
[1718218569490,0.05623587,3562.3,3561.1,1.48918682]
[1718218569851,0.05623587,3562.3,3561.1,1.43344514]
[1718218570370,2.80727,3562.2,3561.1,1.43344514]
[1718218570577,2.80741,3562.0,3561.1,1.43344514]
[1718218571973,2.80707,3562.5,3561.1,1.43344514]
[1718218572306,1.43344514,3562.5,3560.5,2.4202]
[1718218572490,2.80746,3562.0,3560.7,2.80839]
[1718218572696,2.80746,3562.0,3560.6,1.43344514]
[1718218572697,2.2781,3563.9,3561.8,2.80752]
[1718218572880,3.05,3565.3,3561.6,2.3167]
[1718218572881,0.05623587,3563.8,3561.7,1.43344514]
[1718218573080,2.80588,3564.0,3561.8,0.37501451]
[1718218573282,2.80588,3564.0,3562.0,2.3823]
[1718218573586,2.80588,3564.0,3562.1,0.05612322]
[1718218573783,2.80588,3564.0,3562.2,0.55]
[1718218573987,0.05623587,3563.9,3562.3,1.43344514]
[1718218574184,2.80667,3563.0,3562.3,1.43344514]
[1718218574390,0.280667,3562.9,3562.3,1.43344514]
[1718218574586,2.80667,3563.0,3562.3,1.43344514]
[1718218575073,2.80618,3563.6,3562.3,1.43344514]
[1718218575407,2.80587,3564.0,3562.6,2.8069]
[1718218575578,2.80587,3564.0,3562.9,2.80668]
[1718218575779,2.80587,3564.0,3563.0,0.0561176]
[1718218576008,0.05623587,3563.9,3561.9,2.80745]
[1718218576209,0.05623587,3563.9,3562.1,1.43344514]
[1718218576407,0.05623587,3563.9,3562.2,0.55]
[1718218576594,2.80619,3563.6,3562.3,1.43344514]
[1718218576797,2.80619,3563.6,3562.4,0.55]
[1718218577117,2.80582,3564.1,3562.6,1.43344514]
[1718218577331,5.21701,3565.1,3563.1,1.43344514]
[1718218577332,2.80547,3564.5,3563.1,1.43344514]
[1718218577480,2.4737,3565.7,3563.3,1.43344514]
[1718218577782,2.80495,3565.2,3563.9,2.80586]
[1718218577981,2.80505,3565.0,3564.0,0.55]
[1718218578186,3.09117859,3565.0,3564.1,1.43344514]
[1718218578383,2.80505,3565.0,3564.1,1.43344514]
[1718218579007,2.80406,3566.3,3564.2,2.2506]
[1718218579184,0.05623587,3566.2,3564.5,1.43344514]
[1718218579387,2.80499,3565.1,3564.5,1.43344514]
[1718218579581,2.80528,3564.8,3563.6,2.4729]
[1718218579813,2.80528,3564.8,3563.7,1.98344514]
[1718218580113,2.80537,3564.6,3563.7,1.43344514]
[1718218580408,0.05623587,3564.5,3563.0,2.74]
[1718218580572,2.80589,3564.0,3563.1,1.43344514]
[1718218580775,2.8061,3563.7,3562.9,2.4901]
[1718218580978,2.80652,3563.2,3562.3,2.4672]
[1718218581217,2.80676,3562.9,3561.6,5.2072]
[1718218581417,2.80638,3563.4,3561.6,5.2072]
[1718218581717,0.280638,3563.3,3562.0,2.80735]
[1718218582011,0.33687387,3563.3,3562.1,1.43344514]
[1718218582211,0.05623587,3563.3,3561.6,2.4672]
[1718218582381,2.8067,3563.0,3561.6,5.27485]
[1718218582581,2.80631,3563.4,3561.9,4.24087514]
[1718218582901,3.280589,3563.9,3562.3,1.43344514]
[1718218582902,2.80601,3563.8,3562.3,1.43344514]
[1718218583128,0.280589,3563.9,3562.6,1.43344514]
[1718218583318,2.8057,3564.2,3562.8,2.4058]
[1718218583519,2.8057,3564.2,3562.9,2.03654928]
[1718218583815,2.8057,3564.2,3562.9,1.98344514]
[1718218583979,0.28057,3564.1,3562.9,1.98344514]
[1718218584776,2.80507,3565.0,3563.5,4.23966514]
[1718218585028,2.80529,3564.7,3563.5,1.43344514]
[1718218585314,2.80529,3564.7,3563.6,0.05603589]
[1718218585649,2.80583,3564.1,3562.8,2.4058]
[1718218585816,0.280583,3564.0,3562.9,1.43344514]
[1718218586120,0.05623587,3563.9,3562.9,1.43344514]
[1718218586424,0.05623587,3564.0,3563.0,0.05403007]
[1718218586579,2.80582,3564.1,3563.1,1.43344514]
[1718218586999,2.80582,3564.1,3563.2,0.05611805]
[1718218587212,3.0,3564.6,3563.3,1.43344514]
[1718218587408,2.80562,3564.3,3563.4,0.05611524]
[1718218587611,2.80562,3564.3,3563.5,1.43344514]
[1718218587810,2.80562,3564.3,3563.6,0.05611524]
[1718218588017,0.53502,3564.5,3563.7,1.43344514]
[1718218588196,0.53502,3564.5,3563.8,0.05611526]
[1718218588396,0.53502,3564.5,3563.9,1.43344514]
[1718218588585,2.80502,3565.1,3564.0,0.05610884]
[1718218588781,2.80502,3565.1,3564.1,1.43344514]
[1718218588980,2.80502,3565.1,3564.2,0.05610316]
[1718218589182,2.80502,3565.1,3564.3,1.4895483]
[1718218589413,2.80499,3565.1,3564.4,1.43344514]
[1718218589585,0.280499,3565.0,3564.5,0.05610317]
[1718218590114,2.80544,3564.5,3563.5,2.2775]
[1718218590425,2.80519,3564.9,3563.7,4.23951514]
[1718218590760,2.80506,3565.0,3564.0,1.43344514]
[1718218590964,3.0,3565.6,3564.0,1.43344514]
[1718218591120,2.80521,3564.8,3564.0,1.43344514]
[1718218591665,2.80545,3564.5,3564.0,1.43344514]
[1718218592079,2.80594,3563.9,3563.5,2.2775]
[1718218592356,0.3,3565.5,3563.6,1.43344514]
[1718218592357,2.80585,3564.0,3563.6,1.43344514]
[1718218593469,2.3886,3565.0,3562.9,2.3619]
[1718218593470,2.80604,3563.8,3562.9,2.3619]
[1718218593640,2.80604,3563.8,3563.0,1.43344514]
[1718218594770,5.3886,3565.0,3563.0,1.43344514]
[1718218594997,0.338437,3565.4,3563.5,4.23959514]
[1718218595133,2.80527,3564.8,3563.7,2.80602]
[1718218595332,0.35562957,3565.3,3563.7,1.43344514]
[1718218595333,2.80558,3564.4,3563.7,1.43344514]
[1718218595650,2.80574,3564.2,3563.7,1.43344514]
[1718218597439,0.2993937,3565.3,3563.8,2.03955927]
[1718218597758,0.05623587,3565.2,3563.8,1.48955927]
[1718218597954,2.80514,3564.9,3563.9,3.35588]
[1718218598157,2.80514,3564.9,3564.0,1.48955007]
[1718218598331,0.280514,3564.8,3564.0,1.48955007]
[1718218598732,2.80489,3565.2,3564.0,4.29532007]
[1718218599033,2.80467,3565.5,3564.3,2.2911]
[1718218599234,2.80467,3565.5,3564.4,1.48954236]
[1718218601074,2.2929,3566.9,3564.7,2.80528]
[1718218601075,2.80442,3565.8,3564.7,2.80528]
[1718218601272,0.280442,3565.7,3564.8,1.48953671]
[1718218601474,2.80442,3565.8,3564.8,1.48953671]
[1718218601967,2.80464,3565.6,3564.8,1.43344514]
[1718218602339,2.80482,3565.3,3564.8,1.43344514]
[1718218603181,5.80395,3566.4,3564.8,1.43344514]
[1718218603368,2.8041,3566.2,3564.8,1.43344514]
[1718218603697,3.05623587,3566.1,3564.8,1.43344514]
[1718218604554,2.80487,3565.3,3564.8,1.43344514]
[1718218604754,3.0,3566.1,3564.8,1.43344514]
[1718218604955,2.80502,3565.1,3564.8,1.43344514]
[1718218605163,2.80524,3564.8,3564.3,2.2911]
[1718218605364,2.80524,3564.8,3564.4,1.43344514]
[1718218605885,2.80583,3564.1,3563.7,5.0813]
[1718218606178,2.80597,3563.9,3563.1,2.3413]
[1718218606357,2.80597,3563.9,3563.2,1.43344514]
[1718218607278,2.80499,3565.1,3563.4,1.43344514]
[1718218607488,2.80549,3564.5,3563.4,1.43344514]
[1718218607677,2.80549,3564.5,3563.5,4.25691418]
[1718218607980,3.0,3565.4,3563.7,4.23943514]
[1718218608167,2.3518,3565.7,3563.7,4.23943514]
[1718218608168,0.05623587,3565.3,3563.8,0.60610382]
[1718218608372,0.05623587,3565.3,3563.9,1.43344514]
[1718218608561,2.80526,3564.8,3564.0,0.60610067]
[1718218608758,2.80526,3564.8,3564.1,1.43344514]
[1718218609181,0.515622,3565.6,3564.2,3.87484514]
[1718218609361,5.461785,3566.3,3564.2,3.87484514]
[1718218609362,0.05623587,3565.5,3564.2,4.31732965]
[1718218609578,2.80526,3564.8,3564.2,1.43344514]
[1718218609775,2.80543,3564.6,3564.2,1.43344514]
[1718218610180,2.80514,3564.9,3564.2,1.43344514]
[1718218610378,3.0,3566.2,3564.2,1.43344514]
[1718218610379,2.80502,3565.1,3564.2,1.43344514]
[1718218610596,2.8045,3565.7,3564.3,0.55]
[1718218610777,2.80533,3564.7,3564.4,1.43344514]
[1718218611492,2.80504,3565.1,3564.4,1.43344514]
[1718218611670,2.80517,3564.9,3564.4,1.43344514]
[1718218612271,2.80533,3564.7,3564.4,1.43344514]
[1718218612798,2.80582,3564.1,3563.6,2.4513]
[1718218612996,2.80555,3564.4,3563.7,1.43344514]
[1718218613363,2.80484,3565.3,3563.8,0.04091864]
[1718218613698,2.8053,3564.7,3563.9,1.43344514]
[1718218614000,2.8049,3565.2,3564.0,2.80581]
[1718218614301,2.8049,3565.2,3564.1,1.85737065]
[1718218614598,2.80509,3565.0,3564.2,0.55]
[1718218614799,2.80509,3565.0,3564.3,1.43344514]
[1718218615170,2.80534,3564.7,3564.3,1.43344514]
[1718218615377,2.80505,3565.0,3564.3,1.43344514]
[1718218615597,2.80485,3565.3,3564.3,1.43344514]
[1718218615799,2.8046,3565.6,3564.5,2.3691]
[1718218616001,2.8046,3565.6,3564.6,0.55]
[1718218616201,2.80401,3566.4,3564.6,0.55]
[1718218616402,2.80479,3565.4,3564.6,0.55]
[1718218616602,2.80494,3565.2,3564.7,1.43344514]
[1718218617019,2.80449,3565.8,3564.8,0.55]
[1718218617316,2.80439,3565.9,3564.9,1.43344514]
[1718218617513,2.80439,3565.9,3565.0,0.55]
[1718218617738,2.80454,3565.7,3565.1,1.43344514]
[1718218618310,2.80471,3565.5,3565.1,1.43344514]
[1718218618515,2.80444,3565.8,3565.1,1.43344514]
[1718218619512,2.80463,3565.6,3565.1,1.43344514]
[1718218619715,2.80435,3565.9,3565.1,1.43344514]
[1718218619919,2.80435,3565.9,3565.2,0.01781717]
[1718218620215,2.8046,3565.6,3565.2,1.43344514]
[1718218621516,2.80398,3566.4,3565.2,1.43344514]
[1718218621718,2.80413,3566.2,3564.5,2.3691]
[1718218621885,0.05623587,3566.1,3564.6,1.43344514]
[1718218622086,2.80479,3565.4,3564.6,1.43344514]
[1718218622291,2.80434,3565.9,3564.6,1.43344514]
[1718218622292,2.80494,3565.2,3564.6,1.43344514]
[1718218622818,0.829192,3566.7,3565.0,2.3595]
[1718218623015,0.66835307,3566.6,3565.1,1.86882502]
[1718218623385,0.66835307,3566.6,3565.2,0.55]
[1718218623620,0.66835307,3566.6,3565.3,1.43344514]
[1718218623910,2.80442,3565.8,3565.3,1.43344514]
[1718218624110,2.80442,3565.8,3564.8,2.80516]
[1718218624111,0.05623587,3565.7,3564.2,5.446]
[1718218624315,2.80518,3564.9,3564.5,1.43344514]
[1718218624517,2.80536,3564.6,3564.5,1.43344514]
[1718218624817,2.80461,3565.6,3564.5,1.43344514]
[1718218624818,2.80514,3564.9,3564.5,1.43344514]
[1718218625022,2.8049,3565.2,3564.5,1.43344514]
[1718218625210,2.8051,3565.0,3564.5,1.43344514]
[1718218625404,2.80524,3564.8,3564.5,1.43344514]
[1718218626010,12.906,3566.7,3564.6,0.05610262]
[1718218626184,0.05623587,3566.3,3564.7,1.58239992]
[1718218626521,0.05623587,3566.2,3565.1,1.43344514]
[1718218626694,0.05623587,3566.4,3565.2,0.60608283]
[1718218626893,0.05623587,3566.4,3565.3,1.43344514]
[1718218626894,2.80446,3565.8,3565.3,1.43344514]
[1718218627105,2.8042,3566.1,3565.3,1.43344514]
[1718218627291,2.8042,3566.1,3565.4,0.60070364]
[1718218627490,2.8042,3566.1,3565.5,1.43344514]
[1718218627709,2.8042,3566.1,3565.6,0.05608315]
[1718218628024,2.8042,3566.1,3565.7,1.43344514]
[1718218629221,2.80456,3565.7,3564.8,2.49]
[1718218629425,2.80405,3566.3,3565.5,1.43344514]
[1718218629650,2.80422,3566.1,3565.6,0.05603269]
[1718218629793,2.80422,3566.1,3565.7,1.43344514]
[1718218629992,2.80441,3565.9,3565.7,1.43344514]
[1718218630306,2.80441,3565.9,3564.9,1.09441948]
[1718218630526,2.80441,3565.9,3565.0,1.43344514]
[1718218630705,2.80454,3565.7,3565.1,0.55]
[1718218630905,2.80454,3565.7,3565.2,1.43344514]
[1718218631149,2.80473,3565.5,3565.2,1.43344514]
[1718218631440,2.80405,3566.3,3564.1,3.4]
[1718218631591,2.8054,3564.6,3564.2,3.77064514]
[1718218631957,2.80505,3565.0,3564.2,3.77064514]
[1718218632316,2.80441,3565.9,3564.2,6.57627514]
[1718218632517,0.05623587,3565.8,3564.4,1.43344514]
[1718218632713,0.05623587,3565.8,3564.4,1.8161193]
[1718218632914,2.80476,3565.4,3564.4,1.8161193]
[1718218633220,6.1125731,3566.2,3564.6,1.43344514]
[1718218633422,2.8047,3565.5,3564.6,1.43344514]
[1718218633733,6.1125731,3566.2,3564.7,0.55]
[1718218633734,2.80485,3565.3,3564.7,0.55]
[1718218633936,2.8046,3565.6,3564.8,1.43344514]
[1718218634234,2.80436,3565.9,3564.9,0.02685206]
[1718218634409,2.80436,3565.9,3564.9,1.98344514]
[1718218634735,2.80413,3566.2,3565.2,6.60051514]
[1718218634924,2.80378,3566.7,3565.5,1.43344514]
[1718218635122,2.3286,3567.6,3566.0,1.43344514]
[1718218635326,2.80353,3567.0,3566.0,1.43344514]
[1718218635524,2.80353,3567.0,3566.1,0.55]
[1718218635910,5.11925,3568.2,3566.1,0.55]
[1718218635911,2.80314,3567.5,3566.1,3.35411]
[1718218636114,2.80331,3567.3,3566.4,3.91424514]
[1718218636422,2.80299,3567.7,3566.8,1.43344514]
[1718218636625,2.80266,3568.1,3566.9,2.0395015]
[1718218636830,2.8029,3567.8,3567.3,1.43344514]
[1718218637036,2.8029,3567.8,3567.4,0.55]
[1718218637248,2.8029,3567.8,3567.5,1.43344514]
[1718218637417,2.3283,3569.0,3566.4,2.4808]
[1718218637418,0.33652587,3567.7,3566.4,2.4808]
[1718218637744,0.05623587,3567.6,3566.5,1.98344514]
[1718218637910,0.05623587,3567.6,3566.4,2.4808]
[1718218637914,2.80342,3567.1,3565.8,3.0]
[1718218638235,2.80301,3567.6,3565.7,2.3741]
[1718218638236,2.80301,3567.6,3565.9,1.43344514]
[1718218638449,3.05623587,3567.5,3565.9,1.43344514]
[1718218638643,2.80362,3566.9,3565.9,1.43344514]
[1718218638840,2.80362,3566.9,3565.9,2.41475859]
[1718218639343,2.80378,3566.7,3565.9,2.41475859]
[1718218639639,2.80378,3566.7,3566.0,2.0335879]
[1718218640044,2.80346,3567.1,3566.2,1.43344514]
[1718218640245,2.80363,3566.8,3566.3,0.60595766]
[1718218640542,2.80363,3566.8,3566.4,1.43344514]
[1718218640760,2.80363,3566.8,3566.5,0.60606907]
[1718218641546,2.80316,3567.4,3566.7,1.43344514]
[1718218641746,2.80316,3567.4,3566.8,1.98344514]
[1718218642531,2.80291,3567.8,3567.0,1.43344514]
[1718218642733,2.80291,3567.8,3567.1,0.59057955]
[1718218642942,2.80291,3567.8,3567.2,1.43344514]
[1718218643141,2.80291,3567.8,3567.1,0.59057955]
[1718218643142,2.80183,3569.1,3567.3,2.02402241]
[1718218643444,0.05623587,3569.0,3567.3,1.47402241]
[1718218643646,2.80268,3568.1,3567.4,0.55]
[1718218643846,2.80268,3568.1,3567.5,1.47402046]
[1718218644055,2.80268,3568.1,3567.6,0.55]
[1718218644248,2.80213,3568.8,3567.7,1.47401871]
[1718218644434,2.80244,3568.4,3567.8,1.98344514]
[1718218644957,2.80209,3568.8,3568.0,1.43344514]
[1718218645167,2.80209,3568.8,3568.1,0.55]
[1718218645334,2.80228,3568.6,3568.2,1.43344514]
[1718218645529,2.80228,3568.6,3568.3,0.55]
[1718218645747,2.80198,3568.9,3568.4,1.43344514]
[1718218645948,2.8022,3568.7,3568.5,0.55]
[1718218646255,2.8022,3568.7,3568.6,1.43344514]
[1718218647555,2.80253,3568.2,3567.8,2.3151]
[1718218647765,2.80253,3568.2,3567.9,1.43344514]
[1718218647925,2.80223,3568.6,3568.0,0.5912217]
[1718218648123,2.80223,3568.6,3568.1,1.43344514]
[1718218648348,2.80223,3568.6,3568.2,0.55]
[1718218648550,2.80223,3568.6,3568.3,1.43344514]
[1718218648757,2.80223,3568.6,3568.4,0.55]
[1718218649065,2.80223,3568.6,3567.3,5.80323]
[1718218649066,0.280223,3568.6,3567.3,3.0]
[1718218649359,2.80284,3567.9,3567.4,1.48949352]
[1718218650021,5.7224,3569.7,3567.7,1.43344514]
[1718218650226,0.05623587,3569.6,3567.8,0.04549216]
[1718218650446,2.80259,3568.2,3567.9,1.43344514]
[1718218650645,2.80259,3568.2,3568.0,0.55]
[1718218650857,2.80259,3568.2,3568.1,1.43344514]
[1718218651167,2.80259,3568.2,3568.1,1.98344514]
[1718218651730,2.80167,3569.3,3568.1,2.18178965]
[1718218651932,2.80167,3569.3,3568.2,0.55]
[1718218652235,2.80167,3569.3,3568.3,1.43344514]
[1718218652456,2.80137,3569.7,3568.7,1.43344514]
[1718218652659,2.8009,3570.3,3568.8,0.69334451]
[1718218652660,2.80152,3569.5,3568.8,0.69334451]
[1718218652957,2.80152,3569.5,3568.9,1.43344514]
[1718218653158,2.80173,3569.3,3569.0,0.55]
[1718218653456,2.80173,3569.3,3569.1,1.43344514]
[1718218654223,0.515125,3570.5,3569.1,1.43344514]
[1718218654224,2.80146,3569.6,3569.2,0.55]
[1718218654456,2.80146,3569.6,3569.3,1.43344514]
[1718218654658,2.80146,3569.6,3569.4,0.55]
[1718218654961,2.8009,3570.3,3569.5,1.43344514]
[1718218655145,2.8009,3570.3,3569.6,1.98344514]
[1718218655350,2.8009,3570.3,3569.6,1.43344514]
[1718218655550,2.8009,3570.3,3569.7,0.55]
[1718218655760,2.8009,3570.3,3569.8,1.43344514]
[1718218655948,2.8009,3570.3,3570.0,1.43344514]
[1718218656150,2.8009,3570.3,3570.1,0.55]
[1718218656328,3.23790432,3572.4,3570.2,1.43344514]
[1718218656329,2.80011,3571.3,3570.2,1.43344514]
[1718218656530,2.80011,3571.3,3570.3,0.55]
[1718218656731,2.80011,3571.3,3570.4,1.43344514]
[1718218656943,2.80011,3571.3,3570.5,0.55]
[1718218657243,2.8006,3570.7,3570.6,1.43344514]
[1718218657440,2.8006,3570.7,3570.6,1.98344514]
[1718218658066,2.80083,3570.4,3570.0,0.19834451]
[1718218658295,2.79995,3571.5,3570.3,1.43344514]
[1718218658471,3.05623587,3571.4,3570.4,0.55]
[1718218658673,0.58561859,3571.3,3570.5,1.43344514]
[1718218658969,0.05623587,3571.2,3569.5,3.0]
[1718218659175,0.05623587,3571.2,3569.6,1.43344514]
[1718218659466,2.31283587,3571.2,3569.6,1.43344514]
[1718218659889,2.80134,3569.8,3569.6,1.43344514]
[1718218660389,2.80151,3569.5,3568.8,2.2907]
[1718218660560,2.80173,3569.3,3568.9,1.43344514]
[1718218660768,2.80188,3569.1,3568.9,1.43344514]
[1718218661592,3.0,3570.5,3568.9,1.43344514]
[1718218661800,2.80142,3569.7,3569.0,0.05591127]
[1718218662000,3.0,3570.5,3569.3,1.43344514]
[1718218662166,2.80125,3569.9,3569.4,0.0559507]
[1718218662371,2.80125,3569.9,3569.5,1.43344514]
[1718218662585,2.80125,3569.9,3569.6,0.60602094]
[1718218662781,2.80125,3569.9,3569.7,1.43344514]
[1718218662972,2.80125,3569.9,3569.8,0.55]
[1718218663297,2.80125,3569.9,3569.8,1.98344514]
[1718218663974,2.80097,3570.2,3569.8,1.98344514]
[1718218664175,2.80097,3570.2,3569.9,1.46301338]
[1718218664392,2.80097,3570.2,3570.0,0.55]
[1718218664696,2.80097,3570.2,3570.1,1.43344514]
[1718218664903,2.80097,3570.2,3570.1,1.98344514]
[1718218665201,2.80109,3570.1,3569.1,0.37800564]
[1718218665418,2.80215,3568.7,3568.2,4.8756125]
[1718218665562,2.80126,3569.9,3568.3,1.43344514]
[1718218665896,5.80109,3570.1,3569.0,1.43344514]
[1718218666060,2.80161,3569.4,3569.0,1.43344514]
[1718218666260,2.8018,3569.2,3569.0,1.43344514]
[1718218666457,2.80152,3569.5,3569.0,1.43344514]
[1718218666877,2.80172,3569.3,3569.1,0.55]
[1718218667078,2.80172,3569.3,3569.2,1.43344514]
[1718218667295,2.80172,3569.3,3569.2,1.98344514]
[1718218667495,2.80212,3568.8,3568.3,3.0]
[1718218667686,2.80212,3568.8,3568.4,1.43344514]
[1718218667883,2.80227,3568.6,3568.4,1.43344514]
[1718218668483,2.80271,3568.0,3567.8,1.43344514]
[1718218668997,3.0,3569.4,3567.9,1.43344514]
[1718218669180,3.0,3569.4,3567.5,2.2528]
[1718218669181,2.80216,3568.7,3568.1,1.43344514]
[1718218669383,2.80192,3569.0,3568.5,1.43344514]
[1718218669561,2.80192,3569.0,3568.6,0.19937211]
[1718218669761,2.80168,3569.3,3568.7,1.43344514]
[1718218669963,2.80146,3569.6,3568.8,2.0394696]
[1718218670179,2.80146,3569.6,3568.8,1.98344514]
[1718218670382,2.80187,3569.1,3568.8,1.98344514]
[1718218670583,2.80187,3569.1,3568.8,1.43344514]
[1718218671375,0.05623587,3569.0,3567.7,3.0]
[1718218671576,2.80175,3569.2,3567.8,1.43344514]
[1718218671774,2.80197,3569.0,3568.2,1.43344514]
[1718218672073,2.80197,3569.0,3568.3,0.05596286]
[1718218672273,2.80197,3569.0,3568.4,1.43344514]
[1718218672498,2.80197,3569.0,3568.5,0.05603687]
[1718218672770,2.80179,3569.2,3568.7,1.43344514]
[1718218672972,2.80179,3569.2,3568.8,0.55]
[1718218673170,2.80179,3569.2,3568.9,1.43344514]
[1718218674707,2.80179,3569.2,3568.8,0.55]
[1718218674708,2.80198,3568.9,3567.9,3.0]
[1718218674900,2.80198,3568.9,3568.1,1.43344514]
[1718218675098,2.80198,3568.9,3568.2,0.55]
[1718218675277,2.80198,3568.9,3568.3,1.43344514]
[1718218675476,2.80178,3569.2,3568.4,0.60603817]
[1718218675679,2.80178,3569.2,3568.5,1.63739347]
[1718218675874,2.80178,3569.2,3568.6,0.55]
[1718218676216,2.80178,3569.2,3568.4,0.55]
[1718218676217,2.80293,3567.7,3567.2,2.4324]
[1718218676375,2.8027,3568.0,3567.3,1.43344514]
[1718218676570,2.8019,3569.0,3567.4,1.43344514]
[1718218676571,2.80306,3567.6,3567.4,1.43344514]
[1718218677528,2.80335,3567.2,3566.4,2.4324]
[1718218677683,2.80335,3567.2,3566.7,1.43344514]
[1718218678304,2.80359,3566.9,3566.7,1.43344514]
[1718218679076,2.80393,3566.5,3565.8,2.427]
[1718218679273,2.80393,3566.5,3565.9,2.27767639]
[1718218680042,2.80362,3566.9,3565.9,2.27767639]
[1718218680316,2.80323,3567.4,3566.4,1.43344514]
[1718218680487,0.05623587,3567.3,3566.4,1.43344514]
[1718218680890,2.80375,3566.7,3566.4,1.43344514]
[1718218681039,2.80344,3567.1,3566.4,1.43344514]
[1718218681203,2.80314,3567.5,3566.5,0.05600491]
[1718218681407,2.8028,3567.9,3566.7,1.43344514]
[1718218681713,2.80302,3567.6,3566.8,0.60600209]
[1718218681914,2.80302,3567.6,3566.9,1.43344514]
[1718218682221,2.80325,3567.3,3566.9,1.43344514]
[1718218682433,2.80325,3567.3,3567.0,0.55]
[1718218682733,2.80317,3567.4,3567.1,1.43344514]
[1718218683120,2.80365,3566.8,3566.1,3.0]
[1718218683321,2.80365,3566.8,3566.2,1.43344514]
[1718218683540,2.80365,3566.8,3566.3,0.55]
[1718218683836,2.80365,3566.8,3566.4,1.43344514]
[1718218684027,2.80365,3566.8,3566.5,0.55]
[1718218684341,2.80354,3567.0,3566.6,1.43344514]
[1718218684507,2.8037,3566.8,3566.7,0.55]
[1718218684722,2.8037,3566.8,3566.7,1.98344514]
[1718218687066,2.80388,3566.5,3565.9,0.84423125]
[1718218687222,2.2731,3567.7,3565.2,7.990175]
[1718218687223,2.80409,3566.3,3566.0,1.43344514]
[1718218692458,2.80356,3566.9,3566.1,0.60007359]
[1718218692768,2.80303,3567.6,3566.4,2.80393]
[1718218693072,2.80303,3567.6,3566.5,0.55]
[1718218693450,2.80273,3568.0,3566.6,2.80377]
[1718218693649,2.80273,3568.0,3566.7,0.55]
[1718218693858,2.80273,3568.0,3566.9,1.43344514]
[1718218694185,2.80307,3567.6,3567.0,0.74834451]
[1718218694386,2.80331,3567.2,3567.1,1.43344514]
[1718218694532,2.80331,3567.2,3566.2,0.43171187]
[1718218694836,2.80331,3567.2,3566.3,1.98344514]
[1718218695032,2.80362,3566.9,3566.3,1.98344514]